bitfinex-derivatives/quotes_SOLF0:USTF0_20250415
["timestamp","ask_amount","ask_price","bid_price","bid_amount"]
[1744734639518,7.6665,130.45,130.43,0.05725024]
[1744734639722,0.03657761,130.46,130.43,0.05725024]
[1744734640023,7.70267761,130.46,130.43,7.72445024]
[1744734640423,0.03657761,130.46,130.44,29.96]
[1744734641118,7.6663,130.45,130.44,29.96]
[1744734641416,0.03657761,130.46,130.44,29.96]
[1744734641621,7.70267761,130.46,130.44,29.96]
[1744734641924,0.03657761,130.46,130.44,29.96]
[1744734642119,7.6663,130.45,130.44,29.96]
[1744734643126,7.70267761,130.46,130.44,29.96]
[1744734644428,0.03657761,130.46,130.44,37.6267]
[1744734645027,7.70237761,130.46,130.44,37.6267]
[1744734645328,0.03657761,130.46,130.44,37.6267]
[1744734646324,0.03657761,130.46,130.44,29.96]
[1744734646826,7.6663,130.45,130.44,29.96]
[1744734647232,0.03657761,130.46,130.44,29.96]
[1744734647527,0.03657761,130.46,130.44,37.6263]
[1744734648129,0.03657761,130.46,130.45,7.6663]
[1744734649023,7.6637,130.5,130.44,34.1338]
[1744734649223,7.6637,130.5,130.45,1.9677]
[1744734649526,2.1498,130.52,130.46,7.6654]
[1744734649731,2.1498,130.52,130.45,1.9677]
[1744734649929,2.1498,130.52,130.47,0.05224367]
[1744734650227,13.46549891,130.51,130.44,29.96]
[1744734650422,7.6663,130.45,130.44,29.96]
[1744734652929,0.05224368,130.46,130.43,0.05370413]
[1744734653127,7.6669,130.44,130.43,0.05370413]
[1744734656933,7.6687,130.41,130.4,29.96]
[1744734658133,7.6693,130.4,130.39,0.05226283]
[1744734660729,0.05140811,130.42,130.39,0.05226283]
[1744734660933,0.05140811,130.42,130.39,7.72186283]
[1744734661236,7.6688,130.41,130.39,0.05226283]
[1744734661732,7.6693,130.4,130.39,0.05226283]
[1744734662134,358.49482247,130.41,130.35,29.96]
[1744734662335,2.168,130.4,130.35,29.96]
[1744734662535,4.2219,130.4,130.35,29.96]
[1744734662737,7.6716,130.36,130.35,29.96]
[1744734663237,7.6716,130.36,130.34,0.0551526]
[1744734663438,7.6722,130.35,130.34,0.0551526]
[1744734663935,0.05133285,130.37,130.28,31.9879]
[1744734664240,358.49482247,130.38,130.28,31.9879]
[1744734664431,7.6736,130.33,130.28,31.9879]
[1744734664634,358.49482247,130.38,130.28,31.9879]
[1744734664838,0.0586358,130.34,130.32,0.05399953]
[1744734665037,0.0586358,130.34,130.32,30.01399953]
[1744734665739,7.7317358,130.34,130.32,30.01399953]
[1744734665939,0.0586358,130.34,130.32,30.01399953]
[1744734667138,0.0586358,130.34,130.32,37.68739953]
[1744734667739,0.0586358,130.34,130.33,7.6734]
[1744734667937,13.46549891,130.42,130.32,30.01399953]
[1744734667938,358.49482247,130.44,130.32,37.69399953]
[1744734668239,358.49482247,130.44,130.33,6.055]
[1744734668939,0.05088727,130.4,130.37,7.72278912]
[1744734669139,0.05088727,130.4,130.38,29.96]
[1744734669541,0.05088727,130.4,130.38,37.6304]
[1744734670545,7.72018727,130.4,130.38,37.6304]
[1744734670747,0.05088727,130.4,130.38,29.96]
[1744734671140,7.6699,130.39,130.38,29.96]
[1744734673346,0.05088727,130.4,130.38,29.96]
[1744734673849,0.05088727,130.4,130.38,37.6302]
[1744734676352,0.05088727,130.4,130.39,7.6699]
[1744734677648,358.49482247,130.44,130.39,7.6699]
[1744734677649,358.49482247,130.44,130.4,7.6689]
[1744734677947,7.6676,130.43,130.39,2.0799]
[1744734678146,13.46549891,130.48,130.39,2.0799]
[1744734678350,36.0874,130.5,130.39,4.1216]
[1744734678553,7.6667,130.45,130.43,0.05404353]
[1744734678952,0.05427976,130.46,130.43,0.05404353]
[1744734679853,7.6668,130.45,130.43,0.05404353]
[1744734681057,7.6668,130.45,130.43,7.72124353]
[1744734681252,7.6668,130.45,130.43,0.05404353]
[1744734681754,0.05427976,130.46,130.43,0.05404353]
[1744734682147,0.05427976,130.46,130.44,7.6666]
[1744734682349,0.05427976,130.46,130.43,0.05404353]
[1744734682748,7.72027976,130.46,130.43,0.05404353]
[1744734684155,7.72027976,130.46,130.44,7.6668]
[1744734686153,0.05427976,130.46,130.43,0.05404353]
[1744734686350,0.05427976,130.46,130.45,7.6663]
[1744734686752,13.46549891,130.55,130.48,7.6643]
[1744734687255,13.46549891,130.55,130.47,29.94]
[1744734687647,0.04956041,130.52,130.5,0.0590575]
[1744734687949,7.6628,130.51,130.5,0.0590575]
[1744734688347,0.04956041,130.52,130.5,0.0590575]
[1744734688758,0.04956041,130.52,130.51,37.6028]
[1744734689756,7.6606,130.55,130.51,29.94]
[1744734690655,7.6611,130.54,130.52,7.662]
[1744734690957,378.12692138,130.59,130.52,7.71143964]
[1744734691158,378.12692138,130.59,130.52,0.04943964]
[1744734691457,7.6616,130.53,130.52,0.04943964]
[1744734693867,378.12692138,130.59,130.52,0.04943964]
[1744734694157,364.66142247,130.59,130.52,0.04943964]
[1744734694356,7.6603,130.56,130.53,7.6614]
[1744734694560,364.66142247,130.59,130.53,0.05020831]
[1744734695059,7.6611,130.54,130.53,0.05020831]
[1744734695358,364.66142247,130.59,130.53,0.05020831]
[1744734695655,7.6605,130.56,130.53,7.71170831]
[1744734695859,364.66142247,130.59,130.53,0.05020831]
[1744734696063,7.6611,130.54,130.53,0.05020831]
[1744734696760,7.6607,130.55,130.53,0.05020831]
[1744734697456,364.66142247,130.59,130.53,0.05020831]
[1744734697963,7.6593,130.58,130.53,0.05020831]
[1744734698158,29.92,130.63,130.53,0.05020831]
[1744734698359,7.6587,130.58,130.57,0.04923622]
[1744734698558,0.04923622,130.59,130.51,29.94]
[1744734698760,371.96032138,130.62,130.51,37.6025]
[1744734698761,373.80882247,130.61,130.51,37.6025]
[1744734698962,373.80882247,130.61,130.51,29.94]
[1744734699264,373.80882247,130.61,130.52,7.6619]
[1744734699461,7.6608,130.55,130.52,7.6619]
[1744734699660,7.71003622,130.55,130.52,7.7108428]
[1744734700062,0.04923622,130.55,130.52,0.0489428]
[1744734700563,7.6614,130.54,130.52,0.0489428]
[1744734700861,7.6614,130.54,130.52,7.7111428]
[1744734701163,7.71003622,130.55,130.52,0.0489428]
[1744734701363,7.71003622,130.55,130.52,7.7109428]
[1744734702362,0.04923622,130.55,130.52,7.7109428]
[1744734702962,0.04923622,130.55,130.52,0.0489428]
[1744734703464,0.04923622,130.55,130.54,7.6611]
[1744734703658,358.49482247,130.61,130.52,0.0489428]
[1744734703860,358.49482247,130.61,130.51,29.94]
[1744734704064,358.49482247,130.61,130.54,7.6605]
[1744734704371,358.49482247,130.61,130.51,29.94]
[1744734704662,358.49482247,130.61,130.55,0.05315191]
[1744734706861,13.46549891,130.59,130.51,29.94]
[1744734707066,6.201,130.58,130.51,29.94]
[1744734707968,0.05315191,130.56,130.53,0.05406077]
[1744734708171,7.71335191,130.56,130.54,7.661]
[1744734709371,0.05315191,130.56,130.53,0.05406077]
[1744734709765,7.6611,130.54,130.53,0.05406077]
[1744734710564,7.6622,130.52,130.51,29.94]
[1744734710764,2.0183,130.55,130.48,29.9]
[1744734710964,13.46549891,130.53,130.44,7.6665]
[1744734711174,358.49482247,130.52,130.43,581.76]
[1744734711675,7.6648,130.48,130.46,0.05245124]
[1744734712079,7.6648,130.48,130.46,7.71815124]
[1744734712378,7.6648,130.48,130.46,0.05245124]
[1744734712876,7.72140378,130.49,130.46,0.05245124]
[1744734713079,0.05710378,130.49,130.4,29.9]
[1744734713280,362.51152247,130.49,130.4,29.9]
[1744734713574,13.46549891,130.47,130.4,29.9]
[1744734713768,358.49482247,130.46,130.4,29.9]
[1744734713971,358.49482247,130.46,130.37,29.9]
[1744734713972,13.46549891,130.44,130.37,29.9]
[1744734714176,0.05547063,130.42,130.39,0.05340288]
[1744734714679,7.6693,130.4,130.39,0.05340288]
[1744734715378,358.5502931,130.42,130.34,581.48]
[1744734715581,358.49482247,130.42,130.34,581.48]
[1744734715771,7.672,130.36,130.34,29.9]
[1744734716168,7.73012944,130.36,130.34,29.95881921]
[1744734720284,0.05812944,130.36,130.34,29.95881921]
[1744734720885,7.72982944,130.36,130.34,29.95881921]
[1744734721182,0.05812944,130.36,130.34,29.95881921]
[1744734722083,0.05812944,130.36,130.35,7.6722]
[1744734722682,0.05812944,130.36,130.34,37.63141921]
[1744734722879,0.05812944,130.36,130.34,29.95881921]
[1744734723082,7.6722,130.35,130.34,0.05881921]
[1744734723382,0.05812944,130.36,130.34,0.05881921]
[1744734723580,7.73012944,130.36,130.34,0.05881921]
[1744734723779,0.05812944,130.36,130.34,0.05881921]
[1744734724584,0.05812944,130.36,130.35,7.6722]
[1744734724883,0.05812944,130.36,130.35,37.5922]
[1744734725483,366.16442247,130.4,130.37,7.6708]
[1744734725677,7.6696,130.4,130.37,7.6708]
[1744734725877,7.6696,130.4,130.35,29.92]
[1744734726485,0.05243814,130.39,130.36,0.05689184]
[1744734726686,0.05243814,130.39,130.37,7.671]
[1744734726886,0.05243814,130.39,130.36,0.05689184]
[1744734727087,7.72243814,130.39,130.36,0.05689184]
[1744734727886,0.05243814,130.39,130.36,0.05689184]
[1744734728583,0.05243814,130.39,130.36,6.13139184]
[1744734728782,0.05243814,130.39,130.38,7.6705]
[1744734730388,0.05243814,130.39,130.36,6.13139184]
[1744734730389,7.6672,130.44,130.41,7.6683]
[1744734730589,33.9946,130.47,130.4,29.92]
[1744734730590,4.0746,130.47,130.4,29.92]
[1744734730790,4.0746,130.47,130.36,6.0745]
[1744734730791,7.6666,130.45,130.42,7.668]
[1744734731289,7.7217357,130.45,130.42,0.04920059]
[1744734731494,0.0550357,130.45,130.42,0.04920059]
[1744734731988,7.7216357,130.45,130.42,7.71700059]
[1744734733083,0.0550357,130.45,130.43,7.6671]
[1744734733985,0.0550357,130.45,130.44,7.6669]
[1744734734390,388.39482247,130.53,130.42,6.20900059]
[1744734734597,358.49482247,130.53,130.42,6.1598]
[1744734735291,0.04746352,130.49,130.46,0.05459013]
[1744734735491,0.04746352,130.49,130.47,29.9]
[1744734735691,0.04746352,130.49,130.48,7.6645]
[1744734736288,0.04746352,130.49,130.47,29.9]
[1744734736988,7.6646,130.48,130.47,29.9]
[1744734737589,0.04746352,130.49,130.47,29.9]
[1744734737989,0.04746352,130.49,130.47,37.5649]
[1744734738297,0.04746352,130.49,130.47,29.9]
[1744734739395,7.6646,130.48,130.47,29.9]
[1744734740500,7.6652,130.47,130.46,0.05459013]
[1744734742999,7.6647,130.48,130.46,0.05459013]
[1744734743200,0.04746352,130.49,130.46,0.05459013]
[1744734744300,0.04746352,130.49,130.47,7.6647]
[1744734744496,0.04746352,130.49,130.48,29.9]
[1744734744702,6.1361,130.55,130.48,29.9]
[1744734744902,7.6637,130.5,130.48,29.9]
[1744734745202,6.1361,130.55,130.48,29.9]
[1744734745397,7.6638,130.5,130.48,29.9]
[1744734745598,7.6638,130.5,130.48,29.95600298]
[1744734745998,7.664,130.49,130.48,29.95600298]
[1744734746799,7.664,130.49,130.48,0.05600298]
[1744734747007,380.0734052,130.53,130.42,29.9]
[1744734747206,358.49482247,130.52,130.42,29.9]
[1744734747395,15.3259,130.51,130.42,29.9]
[1744734747598,29.9,130.5,130.42,29.9]
[1744734748203,0.05268825,130.47,130.45,0.05436526]
[1744734748406,7.6662,130.46,130.45,0.05436526]
[1744734757811,7.6675,130.43,130.42,29.9]
[1744734758110,358.49482247,130.48,130.39,29.9]
[1744734758409,7.6684,130.42,130.39,37.5695]
[1744734758611,358.49482247,130.47,130.39,29.9]
[1744734758812,0.04933232,130.44,130.42,0.05015663]
[1744734760914,0.04933232,130.44,130.42,7.71795663]
[1744734762211,0.04933232,130.44,130.42,0.05015663]
[1744734762703,7.6675,130.43,130.42,0.05015663]
[1744734763506,7.71643232,130.44,130.42,0.05015663]
[1744734763709,0.04933232,130.44,130.42,0.05015663]
[1744734764116,0.04933232,130.44,130.42,7.71785663]
[1744734764515,7.6675,130.43,130.42,0.05015663]
[1744734769929,0.04933232,130.44,130.39,29.9]
[1744734770329,7.6708,130.38,130.36,589.6114]
[1744734770628,2.0094,130.43,130.36,29.88]
[1744734770828,0.05035347,130.41,130.38,0.05871424]
[1744734771530,7.6699,130.39,130.38,0.05871424]
[1744734773630,7.6696,130.4,130.38,0.05871424]
[1744734773830,0.05035347,130.41,130.38,0.05871424]
[1744734774329,0.05035347,130.41,130.38,7.72901424]
[1744734774730,7.6695,130.4,130.38,7.72901424]
[1744734774930,0.05035347,130.41,130.38,0.05871424]
[1744734775329,7.6696,130.4,130.38,0.05871424]
[1744734775628,0.05035347,130.41,130.38,7.72901424]
[1744734776330,0.05035347,130.41,130.38,0.05871424]
[1744734777230,7.6698,130.4,130.38,0.05871424]
[1744734777626,7.6698,130.4,130.38,7.72911424]
[1744734778731,7.71915347,130.41,130.39,7.6699]
[1744734778931,0.05035347,130.41,130.38,0.05871424]
[1744734779334,7.6699,130.39,130.38,0.05871424]
[1744734785239,7.6728,130.34,130.33,29.9]
[1744734786235,7.72809638,130.35,130.33,37.573]
[1744734786441,7.72809638,130.35,130.33,29.95022764]
[1744734786842,7.72809638,130.35,130.33,37.62352764]
[1744734787038,0.05559638,130.35,130.33,37.62352764]
[1744734789039,7.72789638,130.35,130.33,37.62352764]
[1744734789242,0.05559638,130.35,130.33,29.95022764]
[1744734789540,7.6728,130.34,130.33,29.95022764]
[1744734789938,7.6728,130.34,130.33,0.05022764]
[1744734790537,7.6744,130.32,130.3,29.9]
[1744734791137,7.6744,130.32,130.28,2.1033]
[1744734791138,7.6749,130.31,130.28,2.1033]
[1744734791445,31.9749,130.36,130.27,32.0412]
[1744734791644,0.04874291,130.33,130.3,0.05295356]
[1744734791846,7.6745,130.32,130.3,0.05295356]
[1744734792044,0.04874291,130.33,130.3,0.05295356]
[1744734792446,7.6746,130.31,130.3,0.05295356]
[1744734797154,7.6763,130.28,130.27,29.9]
[1744734797452,2.1101,130.33,130.27,29.9]
[1744734797751,7.676,130.29,130.27,37.5769]
[1744734797950,7.676,130.29,130.27,29.9]
[1744734798146,7.73096749,130.29,130.27,29.94904088]
[1744734800255,7.6763,130.28,130.27,29.94904088]
[1744734801853,0.05496749,130.29,130.27,37.62574088]
[1744734805649,7.73076749,130.29,130.27,37.62574088]
[1744734805953,0.05496749,130.29,130.27,0.04904088]
[1744734806253,7.6786,130.25,130.23,29.9]
[1744734806754,13.49075205,130.28,130.2,29.9]
[1744734806954,2.0819,130.27,130.2,29.9]
[1744734807155,0.05340406,130.25,130.23,0.048639]
[1744734807354,7.6787,130.24,130.23,0.048639]
[1744734808658,13.54415611,130.25,130.18,29.9]
[1744734808958,7.6816,130.19,130.18,29.9]
[1744734809159,13.49075205,130.25,130.18,29.9]
[1744734809458,7.681,130.21,130.2,0.05556311]
[1744734813362,371.98557452,130.22,130.15,34.124]
[1744734813561,371.98557452,130.22,130.15,29.9]
[1744734813751,374.13147452,130.22,130.15,29.9]
[1744734814358,7.6832,130.17,130.15,29.9]
[1744734814660,7.73589923,130.17,130.15,29.94964184]
[1744734814860,0.05269923,130.17,130.15,29.94964184]
[1744734815559,7.6834,130.16,130.15,29.94964184]
[1744734816068,0.05269923,130.17,130.15,37.63354184]
[1744734816462,0.05269923,130.17,130.16,7.6834]
[1744734816963,7.6813,130.2,130.15,34.10444184]
[1744734817165,7.6813,130.2,130.18,7.6822]
[1744734817967,7.73299406,130.2,130.18,7.73526762]
[1744734818357,0.05169406,130.2,130.19,7.6816]
[1744734819564,0.05169406,130.2,130.19,37.6016]
[1744734819764,360.52762247,130.26,130.19,29.92]
[1744734819964,7.6803,130.22,130.19,29.92]
[1744734820263,7.6803,130.22,130.19,37.6012]
[1744734820663,7.73327121,130.22,130.19,37.65017402]
[1744734821267,7.73327121,130.22,130.19,29.96897402]
[1744734821268,7.6809,130.21,130.19,29.96897402]
[1744734822265,7.6809,130.21,130.19,37.65057402]
[1744734822661,0.05297121,130.22,130.19,29.96897402]
[1744734822861,0.05297121,130.22,130.2,7.6806]
[1744734823368,7.73287121,130.22,130.2,7.6806]
[1744734823573,0.05297121,130.22,130.21,7.6805]
[1744734823765,358.49482247,130.26,130.2,1.9879]
[1744734823963,7.6779,130.26,130.2,4.0095]
[1744734824162,7.6779,130.26,130.23,7.679]
[1744734824363,31.9096,130.29,130.23,7.679]
[1744734824765,0.05785745,130.27,130.25,0.05410041]
[1744734825059,7.678,130.26,130.25,0.05410041]
[1744734825262,0.05785745,130.27,130.2,4.0095]
[1744734825466,13.49075205,130.28,130.2,4.0095]
[1744734826059,7.6802,130.22,130.2,4.0095]
[1744734826262,7.73758029,130.22,130.2,4.06147701]
[1744734827465,0.05738029,130.22,130.2,4.06147701]
[1744734827970,0.05738029,130.22,130.21,7.6805]
[1744734829072,0.05738029,130.22,130.2,11.74217701]
[1744734829373,0.05738029,130.22,130.2,4.06147701]
[1744734829567,0.05738029,130.22,130.21,7.6805]
[1744734832074,0.05738029,130.22,130.2,0.05197701]
[1744734832577,7.6805,130.21,130.2,0.05197701]
[1744734833274,7.73748029,130.22,130.2,0.05197701]
[1744734834276,7.6805,130.21,130.2,0.05197701]
[1744734836666,7.6822,130.18,130.16,29.9]
[1744734836873,43.39075205,130.25,130.16,37.5831]
[1744734837177,7.6822,130.19,130.16,37.5831]
[1744734837476,6.2336,130.24,130.16,29.9]
[1744734837678,7.6811,130.2,130.19,0.04953493]
[1744734838378,7.6828,130.17,130.16,29.9]
[1744734838576,358.49482247,130.23,130.16,29.9]
[1744734839076,358.49482247,130.23,130.16,37.5831]
[1744734839279,0.0560365,130.21,130.18,0.05566883]
[1744734839478,7.6811,130.2,130.18,0.05566883]
[1744734839678,0.0560365,130.21,130.12,31.8976]
[1744734839877,13.49075205,130.22,130.12,31.8976]
[1744734840084,7.6834,130.17,130.14,7.6843]
[1744734840377,13.49075205,130.22,130.12,31.8976]
[1744734840378,358.49482247,130.21,130.12,31.8976]
[1744734840578,7.6838,130.16,130.13,7.6849]
[1744734840877,0.05071647,130.16,130.13,0.05569822]
[1744734841180,7.6843,130.15,130.13,0.05569822]
[1744734841676,0.05071647,130.16,130.13,0.05569822]
[1744734841981,7.73431647,130.16,130.13,7.74039822]
[1744734842280,0.05071647,130.16,130.13,0.05569822]
[1744734842579,0.05071647,130.16,130.15,7.684]
[1744734842976,358.49482247,130.2,130.13,0.05569822]
[1744734843179,7.681,130.21,130.13,0.05569822]
[1744734843380,364.72842247,130.24,130.12,31.8976]
[1744734843778,364.72842247,130.24,130.15,7.6838]
[1744734843980,0.05559814,130.21,130.18,0.05903849]
[1744734844279,7.6816,130.19,130.18,0.05903849]
[1744734845480,7.6812,130.2,130.18,0.05903849]
[1744734846177,0.05559814,130.21,130.18,0.05903849]
[1744734846580,0.05559814,130.21,130.19,7.6813]
[1744734849478,7.73619814,130.21,130.18,7.74103849]
[1744734850386,0.05559814,130.21,130.18,0.05903849]
[1744734851983,7.73629814,130.21,130.18,7.74113849]
[1744734852784,0.05559814,130.21,130.18,7.74113849]
[1744734853185,0.05559814,130.21,130.19,7.6816]
[1744734853685,7.73609814,130.21,130.19,7.6816]
[1744734854289,7.73609814,130.21,130.18,7.74093849]
[1744734854787,7.6811,130.2,130.18,7.74093849]
[1744734855085,0.05559814,130.21,130.18,0.05903849]
[1744734855384,7.6816,130.19,130.18,0.05903849]
[1744734856689,7.684,130.15,130.13,2.1098]
[1744734856988,364.46212247,130.21,130.12,9.717]
[1744734857190,7.6845,130.15,130.12,9.717]
[1744734857590,7.6845,130.15,130.13,7.6851]
[1744734857785,7.74035399,130.15,130.13,7.74336863]
[1744734857987,7.74035399,130.15,130.13,0.05826863]
[1744734858789,0.05585399,130.15,130.13,0.05826863]
[1744734859187,7.6846,130.14,130.13,0.05826863]
[1744734860695,0.05585399,130.15,130.02,1.33756126]
[1744734860990,2.1644,130.14,130.07,7.6884]
[1744734861191,2.1644,130.14,130.04,4.1309]
[1744734861595,2.1644,130.14,130.06,7.6891]
[1744734861794,0.04949128,130.11,130.09,0.05117036]
[1744734862089,7.6875,130.1,130.09,0.05117036]
[1744734864196,7.73609128,130.11,130.09,0.05117036]
[1744734866193,0.04949128,130.11,130.09,0.05117036]
[1744734866999,0.04949128,130.11,130.09,7.73867036]
[1744734867198,0.04949128,130.11,130.09,0.05117036]
[1744734867497,7.73589128,130.11,130.09,0.05117036]
[1744734867894,0.04949128,130.11,130.09,0.05117036]
[1744734869001,7.73619128,130.11,130.09,0.05117036]
[1744734870505,7.687,130.1,130.09,0.05117036]
[1744734873208,0.04949128,130.11,130.09,0.05117036]
[1744734873702,7.73629128,130.11,130.09,0.05117036]
[1744734874306,7.687,130.1,130.09,0.05117036]
[1744734874509,0.04949128,130.11,130.09,0.05117036]
[1744734874802,7.6826,130.18,130.09,7.73117036]
[1744734875006,364.73392247,130.22,130.1,4.1327]
[1744734875505,7.6818,130.19,130.16,7.6831]
[1744734875710,7.73087049,130.19,130.16,7.73604118]
[1744734876208,0.04907049,130.19,130.16,7.73604118]
[1744734877413,7.6826,130.18,130.16,0.05294118]
[1744734877614,0.04907049,130.19,130.16,0.05294118]
[1744734878210,0.04907049,130.19,130.17,7.6825]
[1744734880114,0.04907049,130.19,130.18,7.6822]
[1744734881016,0.04907049,130.19,130.17,7.6825]
[1744734881212,0.04907049,130.19,130.16,0.05294118]
[1744734881518,7.73097049,130.19,130.16,7.73604118]
[1744734882117,0.04907049,130.19,130.17,7.6825]
[1744734886323,0.04907049,130.19,130.18,7.6822]
[1744734888624,0.04907049,130.19,130.17,7.6826]
[1744734891224,7.73077049,130.19,130.17,7.6826]
[1744734891730,0.04907049,130.19,130.18,7.6822]
[1744734896025,0.04907049,130.19,130.17,7.6826]
[1744734897533,0.04907049,130.19,130.18,7.6822]
[1744734897933,0.04907049,130.19,130.16,0.05294118]
[1744734898233,0.04907049,130.19,130.17,7.6825]
[1744734898729,7.73077049,130.19,130.16,7.73604118]
[1744734898932,0.04907049,130.19,130.16,0.05294118]
[1744734899435,7.73127049,130.19,130.16,7.73624118]
[1744734899637,7.73127049,130.19,130.16,0.05294118]
[1744734900233,0.04907049,130.19,130.16,0.05294118]
[1744734900936,0.04907049,130.19,130.18,7.6822]
[1744734901738,0.04907049,130.19,130.17,7.6825]
[1744734901933,0.04907049,130.19,130.16,0.05294118]
[1744734902343,7.6825,130.18,130.16,0.05294118]
[1744734902742,0.04907049,130.19,130.16,0.05294118]
[1744734902935,7.6822,130.18,130.16,7.73614118]
[1744734903136,0.04907049,130.19,130.16,0.05294118]
[1744734904242,7.73107049,130.19,130.16,7.73614118]
[1744734908050,0.04907049,130.19,130.16,0.05294118]
[1744734908544,0.04907049,130.19,130.18,7.6822]
[1744734909048,0.04907049,130.19,130.16,0.05294118]
[1744734909651,7.73097049,130.19,130.16,7.73614118]
[1744734910155,0.04907049,130.19,130.17,7.6827]
[1744734910759,7.73077049,130.19,130.16,7.73604118]
[1744734910951,0.04907049,130.19,130.16,0.05294118]
[1744734912159,7.73107049,130.19,130.16,7.73634118]
[1744734912858,7.6823,130.18,130.16,7.73634118]
[1744734913461,366.17482247,130.18,130.01,72.64322641]
[1744734913756,13.49075205,130.15,130.05,4.2133]
[1744734914458,0.04879154,130.11,130.09,7.73846472]
[1744734915065,362.65522247,130.17,130.09,0.05136472]
[1744734915363,358.49482247,130.17,130.1,4.1074]
[1744734915554,358.49482247,130.23,130.11,1.9782]
[1744734916158,0.04862739,130.18,130.16,0.05417751]
[1744734916461,0.0493774,130.18,130.16,0.05417751]
[1744734916962,0.0493774,130.18,130.17,7.6827]
[1744734917261,0.0493774,130.18,130.16,0.05417751]
[1744734917661,0.0493774,130.18,130.16,7.73747751]
[1744734918062,0.0493774,130.18,130.16,0.05417751]
[1744734918759,7.7316774,130.18,130.16,0.05417751]
[1744734919156,0.0493774,130.18,130.16,7.73727751]
[1744734919356,0.0493774,130.18,130.16,0.05417751]
[1744734919856,0.0493774,130.18,130.17,7.6828]
[1744734920859,0.0493774,130.18,130.16,7.73727751]
[1744734921365,0.0493774,130.18,130.17,7.6828]
[1744734923867,358.49482247,130.32,130.16,15.42087751]
[1744734924056,358.49482247,130.31,130.17,4.1507]
[1744734924560,358.49482247,130.31,130.23,7.679]
[1744734924760,7.6774,130.27,130.23,7.679]
[1744734924963,0.04913344,130.26,130.24,0.05469598]
[1744734925460,7.72673344,130.26,130.24,0.05469598]
[1744734925666,0.04913344,130.26,130.24,0.05469598]
[1744734926268,7.6781,130.25,130.24,0.05469598]
[1744734926769,0.04913344,130.26,130.24,0.05469598]
[1744734927274,7.6781,130.25,130.24,0.05469598]
[1744734927572,0.04913344,130.26,130.2,7.6808]
[1744734927966,0.04913344,130.26,130.17,4.1507]
[1744734927967,0.04913344,130.26,130.19,7.6814]
[1744734928167,358.49482247,130.28,130.19,7.6814]
[1744734928367,7.6796,130.23,130.22,0.05276214]
[1744734929673,0.05460963,130.25,130.22,0.05276214]
[1744734929875,0.05460963,130.25,130.24,7.6787]
[1744734930071,0.05460963,130.25,130.22,0.05276214]
[1744734930567,7.6787,130.24,130.22,0.05276214]
[1744734931072,0.05460963,130.25,130.22,0.05276214]
[1744734931872,7.6793,130.23,130.22,0.05276214]
[1744734932971,0.05460963,130.25,130.22,0.05276214]
[1744734934373,7.73300963,130.25,130.22,0.05276214]
[1744734934570,0.05460963,130.25,130.22,0.05276214]
[1744734935770,0.05460963,130.25,130.23,7.6789]
[1744734935971,0.05460963,130.25,130.22,0.05276214]
[1744734936370,7.6792,130.24,130.22,0.05276214]
[1744734937572,7.73290963,130.25,130.22,0.05276214]
[1744734938274,0.05460963,130.25,130.22,0.05276214]
[1744734939174,7.6792,130.24,130.22,0.05276214]
[1744734939370,0.05460963,130.25,130.22,0.05276214]
[1744734939672,7.6793,130.23,130.22,0.05276214]
[1744734941475,7.6793,130.23,130.13,15.3698]
[1744734941476,0.05460963,130.25,130.14,1.9983]
[1744734941668,2.0913,130.22,130.14,1.9983]
[1744734942069,7.6813,130.2,130.14,1.9983]
[1744734942270,0.05440375,130.18,130.17,7.6825]
[1744734945379,358.49482247,130.24,130.19,7.6811]
[1744734945571,358.49482247,130.24,130.14,1.9983]
[1744734945875,358.49482247,130.24,130.15,15.368]
[1744734946070,358.49482247,130.24,130.22,7.6796]
[1744734946275,2.0249,130.26,130.16,2.0969]
[1744734946478,0.05014748,130.22,130.21,7.68]
[1744734946676,0.05264996,130.23,130.2,0.05034179]
[1744734947180,0.05264996,130.23,130.22,7.6793]
[1744734948182,0.05264996,130.23,130.21,7.6801]
[1744734948375,0.05264996,130.23,130.2,0.05034179]
[1744734948679,0.05264996,130.23,130.22,7.6799]
[1744734950977,0.05264996,130.23,130.21,7.6803]
[1744734951278,0.05264996,130.23,130.2,0.05034179]
[1744734951578,0.05264996,130.23,130.22,7.6799]
[1744734955780,0.05264996,130.23,130.21,7.6801]